bitfinex-derivatives/quotes_SOLF0:USTF0_20250904
["timestamp","ask_amount","ask_price","bid_price","bid_amount"]
[1756981396920,1.94166604,208.55,208.48,1.94166604]
[1756981397115,7.68,208.54,208.48,1.94166604]
[1756981397923,4.3148,208.53,208.48,1.94166604]
[1756981398122,7.68,208.52,208.48,1.94166604]
[1756981398517,4.3148,208.53,208.48,1.94166604]
[1756981398716,4.315,208.52,208.48,1.94166604]
[1756981398919,7.68,208.51,208.48,1.94166604]
[1756981399122,7.68,208.51,208.46,1.94166604]
[1756981399318,7.68,208.51,208.47,7.03]
[1756981399821,1.94166604,208.54,208.44,3.98933942]
[1756981400024,11.9954,208.5,208.44,1.94166604]
[1756981400219,11.9954,208.5,208.43,7.03]
[1756981400420,9.62166604,208.5,208.43,7.03]
[1756981400815,9.62166604,208.5,208.42,1.94166604]
[1756981401018,4.3156,208.49,208.42,1.94166604]
[1756981401219,9.62166604,208.5,208.42,1.94166604]
[1756981402225,11.9953,208.5,208.44,1.94166604]
[1756981406823,7.68,208.5,208.44,1.94166604]
[1756981410330,1.94166604,208.53,208.46,1.94166604]
[1756981410331,7.68,208.52,208.46,1.94166604]
[1756981410924,11.9949,208.52,208.46,1.94166604]
[1756981411328,1.94166604,208.51,208.44,1.94166604]
[1756981411530,7.68,208.5,208.44,1.94166604]
[1756981412926,7.68,208.5,208.46,1.94166604]
[1756981413122,7.68,208.51,208.46,1.94166604]
[1756981413328,4.3149,208.52,208.46,1.94166604]
[1756981413529,7.68,208.51,208.46,1.94166604]
[1756981413730,4.3149,208.52,208.46,1.94166604]
[1756981414228,7.68,208.51,208.43,11.01933942]
[1756981414431,4.3145,208.54,208.45,11.01933942]
[1756981414628,7.68,208.53,208.48,1.94166604]
[1756981414931,4.3145,208.54,208.48,1.94166604]
[1756981415329,1.94166604,208.56,208.48,1.94166604]
[1756981415330,4.3147,208.53,208.48,1.94166604]
[1756981415528,7.68,208.52,208.48,1.94166604]
[1756981415727,4.3152,208.51,208.45,5.93100546]
[1756981415925,7.68,208.51,208.45,1.94166604]
[1756981416835,4.3156,208.49,208.45,1.94166604]
[1756981417027,7.68,208.48,208.45,1.94166604]
[1756981417834,4.3156,208.49,208.45,1.94166604]
[1756981418235,7.68,208.48,208.45,1.94166604]
[1756981418429,4.3156,208.49,208.45,1.94166604]
[1756981418636,7.68,208.48,208.45,1.94166604]
[1756981419745,4.3156,208.49,208.45,1.94166604]
[1756981420143,7.68,208.48,208.45,1.94166604]
[1756981420343,4.3156,208.49,208.45,1.94166604]
[1756981420544,7.68,208.47,208.43,8.97166604]
[1756981421443,7.68,208.47,208.43,12.97658288]
[1756981421644,7.68,208.47,208.43,8.97166604]
[1756981422345,7.68,208.47,208.44,7.01]
[1756981425945,7.97,208.45,208.42,4.00491684]
[1756981426141,1.94166604,208.47,208.39,11.01491684]
[1756981426340,1.94166604,208.47,208.4,1.94166604]
[1756981426341,7.97,208.46,208.4,1.94166604]
[1756981426848,4.3164,208.45,208.4,1.94166604]
[1756981427444,7.97,208.44,208.4,1.94166604]
[1756981427647,4.3164,208.45,208.4,1.94166604]
[1756981427947,7.97,208.44,208.4,1.94166604]
[1756981428345,4.3164,208.45,208.4,1.94166604]
[1756981428543,7.97,208.44,208.4,1.94166604]
[1756981429348,7.97,208.44,208.4,8.95166604]
[1756981430249,4.3164,208.45,208.4,8.95166604]
[1756981430549,7.97,208.44,208.4,8.95166604]
[1756981431547,7.97,208.44,208.37,4.00553711]
[1756981431746,7.97,208.44,208.37,1.94166604]
[1756981432951,4.317,208.42,208.37,8.95166604]
[1756981433148,7.97,208.41,208.37,8.95166604]
[1756981434448,4.317,208.42,208.37,8.95166604]
[1756981434649,7.97,208.41,208.37,8.95166604]
[1756981434846,4.3172,208.41,208.37,1.94166604]
[1756981435547,7.97,208.4,208.37,1.94166604]
[1756981435848,4.3172,208.41,208.37,1.94166604]
[1756981436043,7.97,208.4,208.37,1.94166604]
[1756981436243,4.3172,208.41,208.37,1.94166604]
[1756981436950,7.97,208.4,208.37,1.94166604]
[1756981437145,4.3172,208.41,208.37,1.94166604]
[1756981437542,7.97,208.4,208.37,1.94166604]
[1756981437747,4.3172,208.41,208.35,5.94720315]
[1756981438144,12.2872,208.41,208.35,5.94720315]
[1756981440146,12.2872,208.41,208.37,1.94166604]
[1756981440147,7.97,208.41,208.37,1.94166604]
[1756981440450,7.97,208.46,208.39,1.94166604]
[1756981440953,7.97,208.46,208.38,7.01]
[1756981441157,4.3166,208.44,208.4,1.94166604]
[1756981441350,7.97,208.43,208.4,1.94166604]
[1756981441851,7.97,208.47,208.4,1.94166604]
[1756981442958,4.3167,208.44,208.4,1.94166604]
[1756981443158,7.97,208.43,208.39,8.95166604]
[1756981443659,7.97,208.43,208.4,7.01]
[1756981444654,4.3167,208.44,208.39,1.94166604]
[1756981444853,4.3167,208.44,208.39,8.95166604]
[1756981445451,7.97,208.43,208.39,8.95166604]
[1756981445656,4.3167,208.44,208.39,8.95166604]
[1756981445856,7.97,208.43,208.39,8.95166604]
[1756981446460,4.3167,208.44,208.39,8.95166604]
[1756981446661,12.2862,208.46,208.39,8.95166604]
[1756981447157,12.2862,208.46,208.39,7.01]
[1756981447357,12.2862,208.46,208.4,1.94166604]
[1756981447358,4.3164,208.45,208.4,1.94166604]
[1756981447557,7.97,208.46,208.4,1.94166604]
[1756981448159,7.97,208.43,208.4,1.94166604]
[1756981448361,7.97,208.43,208.39,7.01]
[1756981448362,7.97,208.45,208.39,8.95166604]
[1756981448763,7.97,208.43,208.37,5.94720315]
[1756981448965,7.97,208.43,208.36,5.94720315]
[1756981449864,4.3174,208.4,208.37,7.01]
[1756981450058,4.3174,208.4,208.36,5.94720315]
[1756981450457,4.3174,208.4,208.37,7.01]
[1756981450858,4.3174,208.4,208.36,5.94720315]
[1756981451261,4.3174,208.4,208.37,7.04]
[1756981451564,12.2874,208.4,208.37,7.04]
[1756981451861,7.97,208.39,208.37,7.04]
[1756981452658,4.3177,208.39,208.35,11.04553711]
[1756981452862,7.33,208.43,208.35,11.04553711]
[1756981453065,7.33,208.42,208.35,11.04553711]
[1756981453261,7.33,208.36,208.32,11.04553711]
[1756981453468,7.33,208.36,208.32,7.04]
[1756981453654,7.33,208.36,208.31,7.0450533]
[1756981453961,7.33,208.36,208.32,7.04]
[1756981454367,7.33,208.36,208.31,7.0450533]
[1756981454561,7.33,208.36,208.32,7.04]
[1756981454762,7.33,208.36,208.31,7.0450533]
[1756981454959,7.33,208.36,208.32,7.04]
[1756981455360,11.6483,208.36,208.31,7.0450533]
[1756981455766,11.6483,208.36,208.32,7.04]
[1756981455968,11.6483,208.36,208.31,7.0450533]
[1756981456168,11.6483,208.36,208.32,7.04]
[1756981456867,11.6483,208.36,208.31,3.03951619]
[1756981457062,11.6483,208.36,208.32,7.04]
[1756981457365,7.33,208.35,208.32,7.04]
[1756981457964,4.3183,208.36,208.32,7.04]
[1756981458166,4.3183,208.36,208.31,3.03951619]
[1756981458762,4.3183,208.36,208.32,7.04]
[1756981459168,11.6483,208.36,208.32,7.04]
[1756981459366,67.1537,208.42,208.3,186.89098958]
[1756981459367,7.33,208.34,208.3,186.89098958]
[1756981459669,4.3185,208.35,208.3,179.85098958]
[1756981459968,11.6485,208.35,208.31,7.04]
[1756981461660,7.33,208.35,208.28,7.0450533]
[1756981461861,7.33,208.35,208.29,10.07951619]
[1756981465269,7.33,208.45,208.32,3.03951619]
[1756981465475,7.33,208.45,208.37,7.04]
[1756981465862,67.141,208.46,208.33,62.63951619]
[1756981466067,3.03951619,208.45,208.33,62.63951619]
[1756981466876,4.3173,208.41,208.33,62.63951619]
[1756981467068,7.33,208.4,208.33,62.63951619]
[1756981469475,4.3177,208.39,208.33,10.07951619]
[1756981471976,4.3177,208.39,208.33,7.04]
[1756981472876,67.1473,208.44,208.3,11.05195132]
[1756981472877,7.33,208.37,208.3,11.05195132]
[1756981473070,7.33,208.37,208.3,7.04]
[1756981474878,4.3185,208.35,208.3,7.04]
[1756981475072,7.33,208.34,208.3,7.04]
[1756981475280,7.33,208.38,208.3,7.04]
[1756981477075,4.3185,208.35,208.3,7.04]
[1756981477284,4.3185,208.35,208.29,7.04]
[1756981479276,7.33,208.37,208.28,4.01195132]
[1756981479277,11.6487,208.34,208.28,11.05195132]
[1756981479477,11.6487,208.34,208.28,7.04]
[1756981480171,7.33,208.34,208.28,7.04]
[1756981480372,7.33,208.34,208.25,7.05146751]
[1756981480680,7.33,208.34,208.26,11.05195132]
[1756981481182,7.33,208.34,208.26,7.04]
[1756981481383,11.6487,208.34,208.26,7.04]
[1756981482385,4.3189,208.33,208.26,7.04]
[1756981482586,7.33,208.34,208.26,7.04]
[1756981483890,4.3191,208.32,208.26,7.04]
[1756981484289,7.33,208.34,208.26,7.04]
[1756981485885,4.3194,208.31,208.25,3.03951619]
[1756981486787,4.3194,208.31,208.26,7.04]
[1756981487481,4.3194,208.31,208.25,3.03951619]
[1756981487687,67.1735,208.36,208.24,4.01195132]
[1756981487688,4.3196,208.3,208.24,4.01195132]
[1756981487884,7.36,208.3,208.24,7.04]
[1756981489894,11.6799,208.28,208.24,7.04]
[1756981492997,7.36,208.27,208.24,7.04]
[1756981495797,4.3202,208.27,208.21,4.01195132]
[1756981495997,4.3202,208.27,208.22,7.04]
[1756981496299,4.3202,208.27,208.21,4.01195132]
[1756981497391,4.3202,208.27,208.22,7.04]
[1756981497798,4.3202,208.27,208.21,4.01195132]
[1756981497991,4.3202,208.27,208.22,7.04]
[1756981498392,4.3202,208.27,208.21,4.01195132]
[1756981499996,4.3202,208.27,208.22,7.04]
[1756981500197,7.36,208.32,208.24,7.04]
[1756981500397,7.36,208.32,208.26,3.03951619]
[1756981500797,74.5489,208.31,208.22,4.01195132]
[1756981500999,74.5489,208.31,208.2,14.09146751]
[1756981501198,67.1889,208.31,208.2,14.09146751]
[1756981501394,4.3201,208.27,208.2,14.09146751]
[1756981501900,4.3201,208.27,208.21,7.04]
[1756981502097,7.36,208.28,208.21,7.04]
[1756981503098,4.3204,208.26,208.2,7.05146751]
[1756981503298,4.3204,208.26,208.21,7.04]
[1756981504001,7.36,208.28,208.21,7.04]
[1756981505103,11.68,208.28,208.21,7.04]
[1756981507108,4.3202,208.27,208.21,7.04]
[1756981507505,4.3202,208.27,208.2,3.03951619]
[1756981507900,11.6802,208.27,208.21,7.04]
[1756981508909,4.3204,208.26,208.21,7.04]
[1756981509209,7.36,208.29,208.19,4.01195132]
[1756981509502,4.3208,208.24,208.18,10.07951619]
[1756981509710,11.6808,208.24,208.18,10.07951619]
[1756981511211,67.1954,208.29,208.18,10.07951619]
[1756981511212,4.321,208.23,208.18,7.04]
[1756981511417,67.2067,208.26,208.16,8.98890642]
[1756981511606,7.36,208.25,208.18,1.94890642]
[1756981512013,1.94890642,208.24,208.18,1.94890642]
[1756981512813,4.3211,208.22,208.18,1.94890642]
[1756981513213,1.94890642,208.24,208.18,1.94890642]
[1756981513214,7.72,208.25,208.19,7.05]
[1756981514915,7.72,208.23,208.19,7.05]
[1756981515226,1.94890642,208.26,208.18,1.94890642]
[1756981515515,4.3211,208.22,208.18,7.05]
[1756981515816,7.72,208.21,208.18,7.05]
[1756981516916,7.72,208.21,208.17,1.94890642]
[1756981517113,7.72,208.21,208.18,7.05]
[1756981517317,7.72,208.21,208.17,5.96085774]
[1756981517719,12.0403,208.26,208.19,8.99890642]
[1756981517919,12.0403,208.26,208.21,1.94890642]
[1756981518126,7.72,208.25,208.21,8.99890642]
[1756981518622,4.3203,208.26,208.21,8.99890642]
[1756981519528,7.72,208.25,208.21,7.05]
[1756981520320,7.72,208.25,208.19,7.05]
[1756981523229,7.72,208.25,208.19,11.06195132]
[1756981524629,12.0406,208.25,208.19,11.06195132]
[1756981529228,7.72,208.24,208.2,4.01195132]
[1756981529434,7.72,208.24,208.2,11.06195132]
[1756981530135,4.3206,208.25,208.2,11.06195132]
[1756981530331,7.72,208.24,208.2,11.06195132]
[1756981530730,4.3206,208.25,208.2,11.06195132]
[1756981530926,7.72,208.24,208.2,4.01195132]
[1756981531133,4.3206,208.25,208.19,4.01195132]
[1756981531334,4.3206,208.25,208.2,4.01195132]
[1756981531534,4.3206,208.25,208.2,11.06195132]
[1756981531833,7.72,208.24,208.2,11.06195132]
[1756981532035,4.3206,208.25,208.2,11.06195132]
[1756981532237,7.72,208.24,208.2,11.06195132]
[1756981532534,4.3206,208.25,208.2,11.06195132]
[1756981533240,7.72,208.24,208.2,4.01195132]
[1756981533534,4.3206,208.25,208.2,4.01195132]
[1756981533838,4.3208,208.24,208.2,4.01195132]
[1756981534038,4.3208,208.24,208.19,4.01195132]
[1756981534234,7.72,208.23,208.2,7.05]
[1756981535029,7.72,208.22,208.19,4.01195132]
[1756981535435,4.3211,208.23,208.19,4.01195132]
[1756981535633,11.41334172,208.22,208.19,4.01195132]
[1756981535834,7.72,208.21,208.19,4.01195132]
[1756981538340,7.72,208.21,208.19,11.06195132]
[1756981539737,7.72,208.21,208.19,4.01195132]
[1756981541741,4.3212,208.22,208.19,4.01195132]
[1756981541940,7.72,208.21,208.19,4.01195132]
[1756981542336,7.77,208.21,208.19,4.01195132]
[1756981543236,7.77,208.23,208.19,4.01195132]
[1756981543438,7.77,208.21,208.19,4.01195132]
[1756981544440,4.321,208.23,208.18,4.01195132]
[1756981544637,7.77,208.21,208.17,4.01195132]
[1756981544940,11.46484415,208.2,208.17,11.05195132]
[1756981545140,7.77,208.2,208.17,11.05195132]
[1756981545336,7.77,208.2,208.18,7.04]
[1756981549141,4.321,208.23,208.17,4.01195132]
[1756981549440,3.69491479,208.22,208.17,11.05195132]
[1756981549641,3.69491479,208.21,208.17,11.05195132]
[1756981549837,7.77,208.19,208.17,11.05195132]
[1756981550042,3.69491479,208.18,208.17,11.05195132]
[1756981550843,7.77,208.19,208.17,11.05195132]
[1756981551240,7.77,208.19,208.17,7.04]
[1756981552242,4.3213,208.22,208.16,4.01195132]
[1756981552445,12.0913,208.22,208.16,11.05195132]
[1756981555451,12.0913,208.22,208.17,4.01195132]
[1756981555641,7.77,208.21,208.17,11.05195132]
[1756981555842,4.3213,208.22,208.17,11.05195132]
[1756981557247,4.3213,208.22,208.17,7.04]
[1756981557448,7.77,208.21,208.17,7.04]
[1756981557646,4.3213,208.22,208.17,11.05195132]
[1756981558141,7.77,208.21,208.17,11.05195132]
[1756981558751,4.3213,208.22,208.17,11.05195132]
[1756981559049,7.77,208.21,208.17,11.05195132]
[1756981559256,4.3213,208.22,208.17,11.05195132]
[1756981559545,7.77,208.21,208.17,11.05195132]
[1756981559752,4.3213,208.22,208.17,11.05195132]
[1756981559948,7.77,208.21,208.17,11.05195132]
[1756981560153,4.3213,208.22,208.17,11.05195132]
[1756981560355,7.77,208.21,208.17,11.05195132]
[1756981560546,4.3213,208.22,208.17,11.05195132]
[1756981562154,7.77,208.21,208.17,11.05195132]
[1756981562748,4.3213,208.22,208.17,11.05195132]
[1756981563353,4.3213,208.22,208.18,7.04]
[1756981563958,7.77,208.2,208.18,7.04]
[1756981564859,7.77,208.26,208.18,7.04]
[1756981566051,7.77,208.21,208.18,7.04]
[1756981566253,7.77,208.21,208.17,4.01195132]
[1756981566457,7.77,208.21,208.18,7.04]
[1756981566662,7.77,208.21,208.17,4.01195132]
[1756981566852,7.77,208.21,208.18,7.04]
[1756981567358,7.77,208.21,208.17,4.01195132]
[1756981567856,7.77,208.21,208.18,7.04]
[1756981568160,7.77,208.21,208.17,4.01195132]
[1756981568353,7.77,208.21,208.18,7.04]
[1756981568550,7.77,208.26,208.18,7.04]
[1756981568754,7.77,208.26,208.2,4.01195132]
[1756981569353,4.3204,208.26,208.21,7.04]
[1756981569851,4.3204,208.26,208.2,4.01195132]
[1756981570056,12.0904,208.26,208.21,7.04]
[1756981570362,4.3204,208.26,208.2,4.01195132]
[1756981570658,7.77,208.25,208.22,7.04]
[1756981574665,7.77,208.25,208.21,4.01195132]
[1756981574862,7.77,208.25,208.22,7.04]
[1756981575164,7.77,208.25,208.21,4.01195132]
[1756981575463,7.77,208.25,208.22,7.04]
[1756981576061,7.49,208.25,208.22,7.04]
[1756981576259,7.49,208.24,208.21,7.04]
[1756981576560,7.49,208.24,208.2,4.01195132]
[1756981576761,7.49,208.24,208.21,7.04]
[1756981577260,7.49,208.24,208.2,4.01195132]
[1756981577462,7.49,208.24,208.21,7.04]
[1756981577960,7.49,208.24,208.2,4.01195132]
[1756981578158,7.49,208.24,208.21,7.04]
[1756981578761,7.49,208.24,208.2,4.01195132]
[1756981578957,7.49,208.24,208.21,7.04]
[1756981579164,4.3207,208.25,208.2,4.01195132]
[1756981579462,11.8107,208.25,208.21,7.04]
[1756981580058,11.8107,208.25,208.2,4.01195132]
[1756981580365,11.8107,208.25,208.21,7.04]
[1756981580556,4.3207,208.25,208.2,4.01195132]
[1756981581060,7.49,208.24,208.2,4.01195132]
[1756981581257,7.49,208.24,208.21,7.04]
[1756981583167,7.49,208.24,208.2,4.01195132]
[1756981583364,7.49,208.24,208.21,7.04]
[1756981584660,4.3207,208.25,208.21,7.04]
[1756981584865,7.49,208.24,208.21,7.04]
[1756981585562,7.49,208.24,208.2,4.01195132]
[1756981586464,7.49,208.24,208.21,7.04]
[1756981586666,7.49,208.24,208.2,4.01195132]
[1756981586860,7.49,208.24,208.21,7.04]
[1756981587064,7.49,208.24,208.2,4.01195132]
[1756981587367,7.49,208.24,208.21,7.04]
[1756981587566,7.49,208.24,208.2,4.01195132]
[1756981587966,7.49,208.24,208.21,7.04]
[1756981588170,7.49,208.24,208.2,4.01195132]
[1756981588368,7.49,208.24,208.21,7.04]
[1756981588663,7.49,208.24,208.2,4.01195132]
[1756981588869,7.49,208.24,208.21,11.05195132]
[1756981589170,7.49,208.24,208.21,4.01195132]
[1756981589359,7.49,208.24,208.22,7.04]
[1756981591470,4.3204,208.26,208.21,7.04]
[1756981591666,7.49,208.25,208.21,7.04]
[1756981591967,4.3204,208.26,208.21,7.04]
[1756981592369,7.49,208.25,208.21,7.04]
[1756981592571,4.3204,208.26,208.21,7.04]
[1756981592770,7.49,208.25,208.21,7.04]
[1756981592969,4.3204,208.26,208.21,7.04]
[1756981593373,7.49,208.25,208.21,7.04]
[1756981593975,4.3204,208.26,208.21,7.04]
[1756981594476,4.3204,208.26,208.19,4.01195132]
[1756981594777,7.49,208.24,208.21,7.04]
[1756981595677,4.3204,208.26,208.21,7.04]
[1756981596375,7.49,208.25,208.21,7.04]
[1756981596682,11.8107,208.25,208.21,7.04]
[1756981596870,4.3207,208.25,208.19,11.05195132]
[1756981597073,4.3207,208.25,208.19,7.04]
[1756981597272,7.49,208.24,208.19,7.04]
[1756981597480,4.3207,208.25,208.19,7.04]
[1756981597683,7.49,208.24,208.19,7.04]
[1756981598083,11.8107,208.25,208.19,7.04]
[1756981599780,7.49,208.25,208.19,7.04]
[1756981599981,7.49,208.25,208.13,310.56530698]
[1756981599982,7.49,208.35,208.21,4.01195132]
[1756981600184,5.32583305,208.36,208.23,7.04]
[1756981600185,7.49,208.34,208.23,7.04]
[1756981600381,7.49,208.33,208.23,11.05195132]
[1756981600582,61.94,208.36,208.23,11.05195132]
[1756981600583,67.1771,208.35,208.23,11.05195132]
[1756981600783,7.49,208.34,208.23,7.04]
[1756981600982,7.49,208.3,208.23,7.04]
[1756981601786,4.3197,208.29,208.23,7.04]
[1756981601980,4.3197,208.29,208.21,4.01195132]
[1756981602180,7.49,208.28,208.22,7.04]
[1756981602585,7.49,208.28,208.22,11.05195132]
[1756981604289,7.49,208.28,208.22,7.04]
[1756981610093,7.49,208.28,208.22,11.05195132]
[1756981610294,7.94,208.28,208.22,11.05195132]
[1756981610488,4.32,208.28,208.22,11.05195132]
[1756981610995,7.94,208.27,208.22,7.04]
[1756981611197,4.32,208.28,208.22,7.04]
[1756981611496,7.94,208.27,208.22,7.04]
[1756981611695,4.32,208.28,208.22,7.04]
[1756981611891,7.94,208.27,208.22,7.04]
[1756981612298,7.94,208.27,208.21,11.05195132]
[1756981613095,4.32,208.28,208.22,4.01195132]
[1756981613296,7.94,208.27,208.22,11.05195132]
[1756981613696,7.94,208.27,208.22,4.01195132]
[1756981613892,4.32,208.28,208.22,4.01195132]
[1756981614098,7.94,208.27,208.22,11.05195132]
[1756981614287,4.3202,208.27,208.22,4.01195132]
[1756981614492,7.94,208.26,208.22,4.01195132]
[1756981615093,7.94,208.26,208.23,7.04]
[1756981615289,7.94,208.26,208.22,4.01195132]
[1756981615493,12.2602,208.27,208.22,4.01195132]
[1756981615800,12.2602,208.27,208.23,7.04]
[1756981616099,7.94,208.26,208.22,4.01195132]
[1756981616297,7.94,208.26,208.23,7.04]
[1756981616691,12.2602,208.27,208.23,7.04]
[1756981616888,12.2602,208.27,208.22,4.01195132]
[1756981617094,7.94,208.26,208.23,7.04]
[1756981617600,4.3202,208.27,208.23,7.04]
[1756981617800,7.94,208.26,208.23,7.04]
[1756981618397,7.94,208.26,208.22,4.01195132]
[1756981618601,7.94,208.26,208.23,7.04]
[1756981618799,7.94,208.26,208.22,4.01195132]
[1756981618999,4.3202,208.27,208.23,7.04]
[1756981619201,7.94,208.26,208.23,7.04]
[1756981620003,4.3202,208.27,208.23,7.04]
[1756981620401,4.3202,208.27,208.22,11.05195132]
[1756981620997,7.94,208.26,208.22,11.05195132]
[1756981621202,7.94,208.26,208.23,7.04]
[1756981622001,4.3202,208.27,208.23,7.04]
[1756981622202,7.94,208.26,208.23,7.04]
[1756981622895,4.3204,208.26,208.22,4.01195132]
[1756981623094,7.94,208.25,208.22,7.04]
[1756981623501,4.3204,208.26,208.22,7.04]
[1756981624209,7.94,208.25,208.22,7.04]
[1756981624404,4.3204,208.26,208.22,7.04]
[1756981624807,7.94,208.25,208.22,7.04]
[1756981625008,4.3204,208.26,208.22,7.04]
[1756981625409,7.94,208.25,208.22,7.04]
[1756981625608,4.3204,208.26,208.22,7.04]
[1756981625911,7.94,208.25,208.22,7.04]
[1756981627012,72.51273305,208.32,208.2,4.03354416]
[1756981627013,67.1966,208.29,208.2,11.07354416]
[1756981627212,7.94,208.28,208.2,7.04]
[1756981628015,12.2609,208.24,208.19,4.03354416]
[1756981629306,12.2609,208.24,208.2,7.04]
[1756981629511,4.3211,208.23,208.19,4.03354416]
[1756981629713,4.3211,208.23,208.19,7.04]
[1756981629914,7.94,208.22,208.19,7.04]
[1756981630515,7.94,208.21,208.19,7.04]
[1756981630717,7.94,208.26,208.17,4.03354416]
[1756981632220,7.41,208.26,208.16,11.07354416]
[1756981632918,4.3215,208.21,208.16,4.03354416]
[1756981633123,11.7315,208.21,208.16,4.03354416]
[1756981633416,4.3217,208.2,208.17,7.04]
[1756981633622,4.3217,208.2,208.16,7.04]
[1756981633924,4.3217,208.2,208.15,4.03354416]
[1756981634319,4.3217,208.2,208.16,7.04]
[1756981634515,4.3217,208.2,208.15,4.03354416]
[1756981634917,4.3217,208.2,208.16,7.04]
[1756981635117,4.3217,208.2,208.15,4.03354416]
[1756981635323,4.3217,208.2,208.16,7.04]
[1756981635520,4.3217,208.2,208.15,4.03354416]
[1756981636118,11.7317,208.2,208.15,4.03354416]
[1756981636922,11.7317,208.2,208.16,7.04]
[1756981637123,11.7317,208.2,208.15,4.03354416]
[1756981637322,11.7317,208.2,208.16,7.04]
[1756981637721,11.7317,208.2,208.15,4.03354416]
[1756981638115,7.41,208.2,208.16,7.04]
[1756981638518,7.41,208.2,208.15,4.03354416]
[1756981638719,7.41,208.2,208.16,7.04]
[1756981638923,7.41,208.2,208.15,4.03354416]
[1756981639124,7.41,208.2,208.16,7.04]
[1756981639326,7.41,208.2,208.15,4.03354416]
[1756981639524,4.3214,208.21,208.16,7.04]
[1756981639827,11.7314,208.21,208.15,11.07354416]
[1756981642228,11.7314,208.21,208.15,7.04]
[1756981644925,7.41,208.21,208.15,7.04]
[1756981646132,11.7314,208.21,208.15,7.04]
[1756981647330,7.41,208.21,208.15,7.04]
[1756981648030,7.41,208.21,208.15,11.07354416]
[1756981648326,7.41,208.21,208.15,4.03354416]
[1756981648527,53.76,208.28,208.16,7.04]
[1756981648723,7.41,208.27,208.16,7.04]
[1756981649935,7.41,208.22,208.16,7.04]
[1756981650830,11.7312,208.22,208.16,7.04]
[1756981656141,4.3215,208.21,208.16,7.04]
[1756981656330,11.7315,208.21,208.16,7.04]
[1756981656535,4.3215,208.21,208.15,4.03354416]
[1756981657239,11.7315,208.21,208.16,7.04]
[1756981657441,4.3215,208.21,208.15,4.03354416]
[1756981657743,7.41,208.2,208.17,7.04]
[1756981660844,7.41,208.2,208.15,4.03354416]
[1756981661242,11.7315,208.21,208.16,7.04]
[1756981661442,7.41,208.2,208.17,7.04]
[1756981664154,11.7811,208.23,208.17,7.07]
[1756981664349,7.46,208.23,208.17,7.07]
[1756981664547,67.2077,208.26,208.15,11.10354416]
[1756981664748,74.6731,208.24,208.15,4.03354416]
[1756981664953,74.6731,208.24,208.14,4.03354416]
[1756981665345,4.3218,208.19,208.14,4.03354416]
[1756981665547,7.46,208.18,208.15,7.07]
[1756981666150,7.46,208.18,208.14,4.03354416]
[1756981666351,126.49934037,208.23,208.12,11.10354416]
[1756981666551,7.46,208.22,208.12,11.10354416]
[1756981666947,7.46,208.18,208.12,11.10354416]
[1756981667444,4.322,208.19,208.12,4.03354416]
[1756981668045,7.46,208.17,208.14,7.07]
[1756981671556,7.46,208.17,208.13,4.03354416]
[1756981671855,7.46,208.17,208.14,7.07]
[1756981672553,7.46,208.17,208.13,4.03354416]
[1756981672750,7.46,208.17,208.14,7.07]
[1756981673657,7.46,208.17,208.13,4.03354416]